Workbook

Sheet MSU
B1: Heikki Savikoski | E1: 19.12.1990 Haapavesi
B2: SUPERPESIS | E2: Runkosarja | I2: Kärkilyönnit (KL), pesänvälit | P2: Runkosarja TOP-30 | U2: Alempi loppusarja | AB2: Ylempi loppusarja TOP-10 | AG2: Play off, voitot, voittoprosentti | AL2: Arvo-ottelut | AO2: Mitalit
B3: Vuosi | C3: Sija | D3: Seura | E3: OTT | F3: KUN | G3: LÖI | H3: TOI | I3: KL | J3: 0 > 1 | K3: 1 > 2 | L3: 2 > 3 | M3: 3 > k | N3: KL-% | P3: LÖI | Q3: TOI | R3: L+T | S3: KL | U3: OTT | V3: KUN | W3: LÖI | X3: TOI | Y3: KL | Z3: KL-% | AB3: LÖI | AC3: TOI | AD3: L+T | AE3: KL | AG3: Puolivälierät | AH3: Välierät | AI3: Pronssi | AJ3: Finaalit | AL3: IL | AM3: LL | AN3: hSM | AO3: K | AP3: H | AQ3: P
B4: 2009 | C4: 8. | D4: TU | F4: ykköspesis
B5: 2010 | C5: 6. | D5: HP-K | F5: ykköspesis
B6: 2011 | C6: 3. | D6: HP-K | F6: ykköspesis
B7: 2012 | C7: 4. | D7: KeKi | F7: ykköspesis
B8: 2013 | C8: 4. | D8: KeKi | F8: ykköspesis
B9: 2014 | C9: 2. | D9: KeKi | F9: ykköspesis
B10: 2015 | C10: 2. | D10: KeKi | F10: ykköspesis
B11: 2016 | C11: 13. | D11: KeKi | E11: 28 | F11: 3 | G11: 2 | H11: 34 | I11: 127 | J11: 27 | K11: 63 | L11: 32 | M11: 5 | N11: 61.1 % | O11: 208 | Q11: 26.
B12: 2017 | C12: 14. | D12: KeKi | E12: 30 | F12: 2 | G12: 3 | H12: 35 | I12: 134 | J12: 16 | K12: 76 | L12: 37 | M12: 5 | N12: 63.5 % | O12: 211 | Q12: 29.
B13: 2018 | C13: 1. | D13: KeKi | F13: ykköspesis
B14: 2019 | C14: 12. | D14: KeKi | E14: 18 | F14: 2 | G14: 2 | H14: 17 | I14: 50 | J14: 37 | K14: 4 | L14: 5 | M14: 4 | N14: 56.2 % | O14: 89
B15: 2020 | C15: 10. | D15: KeKi | E15: 21 | F15: 1 | G15: 1 | H15: 19 | I15: 75 | J15: 56 | K15: 15 | L15: 2 | M15: 2 | N15: 59.1 % | O15: 127
B16: 2021 | C16: 6. | D16: KeKi | E16: 21 | F16: 0 | G16: 2 | H16: 13 | I16: 38 | J16: 25 | K16: 8 | L16: 3 | M16: 2 | N16: 45.2 % | O16: 84 | U16: 3 | V16: 0 | W16: 2 | X16: 0 | Y16: 3 | Z16: 30.0 % | AA16: 10 | AG16: 0-3 KPL
B17: Yhteensä | E17: =SUM(E4:E16) -> 118 | F17: 8 | G17: 10 | H17: 118 | I17: 424 | J17: 161 | K17: 166 | L17: 79 | M17: 18 | N17: =PRODUCT(I17/O17) -> 59.0 % | O17: =SUM(O3:O16) -> 719 | P17: 0-0-0 | Q17: 0-0-0 | R17: 0-0-0 | S17: 0-0-0 | U17: =SUM(U9:U16) -> 3 | V17: =SUM(V9:V16) -> 0 | W17: 2 | X17: 0 | Y17: 3 | Z17: =PRODUCT(N23) -> 30.0 % | AB17: 0-0-0 | AC17: 0-0-0 | AD17: 0-0-0 | AE17: 0-0-0 | AG17: 0/1 | AH17: 0/0 | AI17: 0/0 | AJ17: 0/0 | AL17: =SUM(AL4:AL16) -> 0 | AM17: 0 | AN17: 0 | AO17: 0 | AP17: 0 | AQ17: 0
AG18: 0.0 % | AH18: 0.0 % | AI18: 0.0 % | AJ18: 0.0 %
B19: Pesispörssi | D19: =SUM(F17:H17)+((I17-F17-G17)/3)+(E17/3)+(AL17*25)+(AM17*25)+(AN17*10)+(AO17*25)+(AP17*20)+(AQ17*15) -> 310.7
B21: URA SUPERISSA | E21: OTT | F21: KUN | G21: LÖI | H21: TOI | I21: KL | K21: ka/L | L21: ka/T | M21: ka/KL | N21: KL-% | P21: ENSIMMÄISET | AG21: ENSIMMÄISET PUDOTUSPELEISSÄ | AL21: YLEISÖ
B22: Runkosarja | E22: =PRODUCT(E17) -> 118 | F22: =PRODUCT(F17) -> 8 | G22: =PRODUCT(G17) -> 10 | H22: =PRODUCT(H17) -> 118 | I22: =PRODUCT(I17) -> 424 | K22: =PRODUCT((F22+G22)/E22) -> 0.15 | L22: =PRODUCT(H22/E22) -> 1.00 | M22: =PRODUCT(I22/E22) -> 3.59 | N22: =PRODUCT(N17) -> 59.0 % | O22: =PRODUCT(O17) -> 719 | P22: Ottelu | R22: 08.05. 2016 KoU - KeKi 2-0 (5-1, 7-3) | Z22: 1. ottelu | AD22: 25 v 4 kk 19 pv | AG22: Ottelu | AH22: 1. 27.08. 2021 KPL - KeKi 2-1 k | AL22: 1102 | AN22: 30 v 8 kk 8 pv
B23: Ylempi loppusarja | E23: =PRODUCT(U17) -> 3 | F23: =PRODUCT(V17) -> 0 | G23: 2 | H23: 0 | I23: 3 | K23: =PRODUCT((F23+G23)/E23) -> 0.67 | L23: =PRODUCT(H23/E23) -> 0.00 | M23: =PRODUCT(I23/E23) -> 1.00 | N23: =PRODUCT(I23/O23) -> 30.0 % | O23: 10 | P23: Lyöty | R23: 24.05. 2016 KeKi - Tahko 0-2 (2-3, 3-4) | Z23: 6. ottelu | AD23: 25 v 5 kk 5 pv | AG23: Lyöty | AH23: 1. 27.08. 2021 KPL - KeKi 2-1 k | AL23: 1102 | AN23: 30 v 8 kk 8 pv
B24: Alempi loppusarja | E24: 12 | F24: 0 | G24: 0 | H24: 14 | I24: 45 | K24: =PRODUCT((F24+G24)/E24) -> 0.00 | L24: =PRODUCT(H24/E24) -> 1.17 | M24: =PRODUCT(I24/E24) -> 3.75 | N24: =PRODUCT(I24/O24) -> 58.4 % | O24: 77 | P24: Tuotu | R24: 22.05. 2016 JymyJussit - Keki 2-0 (6-4, 11-2) | Z24: 5. ottelu | AD24: 25 v 5 kk 3 pv | AG24: Tuotu
B25: KAIKKI | E25: =SUM(E22:E24) -> 133 | F25: =SUM(F22:F24) -> 8 | G25: =SUM(G22:G24) -> 12 | H25: =SUM(H22:H24) -> 132 | I25: =SUM(I22:I24) -> 472 | K25: =PRODUCT((F25+G25)/E25) -> 0.15 | L25: =PRODUCT(H25/E25) -> 0.99 | M25: =PRODUCT(I25/E25) -> 3.55 | N25: =PRODUCT(I25/O25) -> 58.6 % | O25: =SUM(O22:O24) -> 806 | P25: Kunnari | R25: 24.05. 2016 KeKi - Tahko 0-2 (2-3, 3-4) | Z25: 6. ottelu | AD25: 25 v 5 kk 5 pv | AG25: Kunnari
O26: =SUM(O23:O25) -> 893
B27: Vuoden tulokas 2016
B29: Seurat | D29: Haapaveden Urheilijat (1938), kasvattajaseura
D30: TU = Toholammin Urheilijat (1955)
D31: HP-K = Haapajärven Pesä-Kiilat (1990)
D32: KeKi = Kempeleen Kiri (1915)

Sheet MYP, MSS
B1: Heikki Savikoski | E1: 19.12.1990 Haapavesi
B2: YKKÖSPESIS | E2: Runkosarja | L2: Runkosarja TOP-10 | Q2: Jatkosarjat | X2: SUOMENSARJA | AA2: Runkosarja | AH2: Runkosarja TOP-10 | AM2: Jatkosarjat
B3: Vuosi | C3: Sija | D3: Seura | E3: OTT | F3: KUN | G3: LÖI | H3: TOI | I3: KL | J3: KL-% | L3: LÖI | M3: TOI | N3: L+T | O3: KL | Q3: OTT | R3: KUN | S3: LÖI | T3: TOI | U3: KL | V3: KL-% | X3: Vuosi | Y3: Sija | Z3: Seura | AA3: OTT | AB3: KUN | AC3: LÖI | AD3: TOI | AE3: KL | AF3: KL-% | AH3: LÖI | AI3: TOI | AJ3: L+T | AK3: KL | AM3: OTT | AN3: KUN | AO3: LÖI | AP3: TOI | AQ3: KL | AR3: KL-%
B4: 2009 | C4: 11. | D4: HP-K | E4: 11 | F4: 0 | G4: 0 | H4: 2 | I4: 11 | J4: 31.4 % | K4: 35 | X4: 2009 | Y4: 8. | Z4: TU | AA4: 5 | AB4: 0 | AC4: 1 | AD4: 5 | AE4: 14 | AF4: 40.0 % | AG4: 35
B5: 2010 | C5: 5. | D5: HP-K | E5: 14 | F5: 0 | G5: 0 | H5: 8 | I5: 36 | J5: 51.4 % | K5: 70 | Q5: 2 | R5: 0 | S5: 1 | T5: 1 | U5: 9 | V5: 56.3 % | W5: 16 | X5: 2010 | Y5: 10. | Z5: HP-K 2 | AA5: 8 | AB5: 0 | AC5: 1 | AD5: 16 | AE5: 39 | AF5: 65.0 % | AG5: 60
B6: 2011 | C6: 12. | D6: HP-K | E6: 21 | F6: 2 | G6: 3 | H6: 19 | I6: 59 | J6: 54.1 % | K6: 109 | X6: 2011 | Y6: 9. | Z6: HP-K 2 | AA6: 2 | AB6: 0 | AC6: 0 | AD6: 8 | AE6: 13 | AF6: 68.4 % | AG6: 19
B7: 2012 | C7: 4. | D7: KeKi | E7: 22 | F7: 0 | G7: 3 | H7: 29 | I7: 68 | J7: 50.4 % | K7: 135 | M7: 10. | Q7: 4 | R7: 0 | S7: 0 | T7: 6 | U7: 10 | V7: 50.0 % | W7: 20
B8: 2013 | C8: 4. | D8: KeKi | E8: 22 | F8: 0 | G8: 2 | H8: 25 | I8: 82 | J8: 61.2 % | K8: 134 | Q8: 4 | R8: 0 | S8: 1 | T8: 4 | U8: 18 | V8: 64.3 % | W8: 28
B9: 2014 | C9: 2. | D9: KeKi | E9: 22 | F9: 0 | G9: 2 | H9: 26 | I9: 76 | J9: 53.5 % | K9: 142 | Q9: 5 | R9: 0 | S9: 0 | T9: 5 | U9: 19 | V9: 52.4 % | W9: 37
B10: 2015 | C10: 2. | D10: KeKi | E10: 24 | F10: 0 | G10: 3 | H10: 34 | I10: 103 | J10: 60.2 % | K10: 171 | M10: 7. | Q10: 6 | R10: 0 | S10: 0 | T10: 19 | U10: 27 | V10: 57.4 % | W10: 47
B12: 2018 | C12: 1. | D12: KeKi | E12: 22 | F12: 2 | G12: 17 | H12: 38 | I12: 90 | J12: 69.8 % | K12: 129 | M12: 10.
B13: YHTEENSÄ | E13: =SUM(E4:E12) -> 158 | F13: =SUM(F4:F12) -> 4 | G13: =SUM(G4:G12) -> 30 | H13: =SUM(H4:H12) -> 181 | I13: =SUM(I4:I12) -> 525 | J13: =PRODUCT(I13/K13) -> 56.8 % | K13: =SUM(K4:K12) -> 925 | Q13: =SUM(Q4:Q12) -> 21 | R13: =SUM(R4:R12) -> 0 | S13: =SUM(S4:S12) -> 2 | T13: =SUM(T4:T12) -> 35 | U13: =SUM(U4:U12) -> 83 | V13: =PRODUCT(U13/W13) -> 56.1 % | W13: =SUM(W4:W12) -> 148 | X13: YHTEENSÄ | AA13: =SUM(AA4:AA12) -> 15 | AB13: =SUM(AB4:AB12) -> 0 | AC13: =SUM(AC4:AC12) -> 2 | AD13: =SUM(AD4:AD12) -> 29 | AE13: =SUM(AE4:AE12) -> 66 | AF13: =PRODUCT(AE13/AG13) -> 57.9 % | AG13: =SUM(AG4:AG12) -> 114 | AM13: =SUM(AM4:AM12) -> 0 | AN13: =SUM(AN4:AN12) -> 0 | AO13: =SUM(AO4:AO12) -> 0 | AP13: =SUM(AP4:AP12) -> 0 | AQ13: =SUM(AQ4:AQ12) -> 0 | AR13: 0.0 % | AS13: =SUM(AS4:AS12) -> 0
B15: KAIKKI OTTELUT | E15: OTT | F15: KUN | G15: LÖI | H15: TOI | I15: KL | J15: KL-% | L15: ka/L | M15: ka/T | N15: ka/l+t | O15: ka/kl | R15: Seurat | T15: Haapaveden Urheilijat (1938), kasvattajaseura
B16: SUPERPESIS | E16: 133 | F16: 8 | G16: 12 | H16: 132 | I16: 472 | J16: 58.6 % | K16: =PRODUCT(I16/J16) -> 805.4607509 | L16: =PRODUCT((F16+G16)/E16) -> 0.15 | M16: =PRODUCT(H16/E16) -> 0.99 | N16: =PRODUCT((F16+G16+H16)/E16) -> 1.14 | O16: =PRODUCT(I16/E16) -> 3.55 | T16: TU = Toholammin Urheilijat (1955)
B17: YKKÖSPESIS | E17: =PRODUCT(E13+Q13) -> 179 | F17: =PRODUCT(F13+R13) -> 4 | G17: =PRODUCT(G13+S13) -> 32 | H17: =PRODUCT(H13+T13) -> 216 | I17: =PRODUCT(I13+U13) -> 608 | J17: =PRODUCT(I17/K17) -> 56.7 % | K17: =PRODUCT(K13+W13) -> 1073 | L17: =PRODUCT((F17+G17)/E17) -> 0.20 | M17: =PRODUCT(H17/E17) -> 1.21 | N17: =PRODUCT((F17+G17+H17)/E17) -> 1.41 | O17: =PRODUCT(I17/E17) -> 3.40 | T17: HP-K = Haapajärven Pesä-Kiilat (1990)
B18: SUOMENSARJA | E18: =PRODUCT(AA13+AM13) -> 15 | F18: =PRODUCT(AB13+AN13) -> 0 | G18: =PRODUCT(AC13+AO13) -> 2 | H18: =PRODUCT(AD13+AP13) -> 29 | I18: =PRODUCT(AE13+AQ13) -> 66 | J18: =PRODUCT(I18/K18) -> 57.9 % | K18: =PRODUCT(AG13+AS13) -> 114 | L18: =PRODUCT((F18+G18)/E18) -> 0.13 | M18: =PRODUCT(H18/E18) -> 1.93 | N18: =PRODUCT((F18+G18+H18)/E18) -> 2.07 | O18: =PRODUCT(I18/E18) -> 4.40 | T18: KeKi = Kempeleen Kiri (1915)
B19: YHTEENSÄ | E19: =SUM(E16:E18) -> 327 | F19: =SUM(F16:F18) -> 12 | G19: 46 | H19: 377 | I19: 1146 | J19: =PRODUCT(I19/K19) -> 57.5 % | K19: =SUM(K16:K18) -> 1992.460751 | L19: =PRODUCT((F19+G19)/E19) -> 0.18 | M19: =PRODUCT(H19/E19) -> 1.15 | N19: =PRODUCT((F19+G19+H19)/E19) -> 1.33 | O19: =PRODUCT(I19/E19) -> 3.50

Sheet Kärkilyönnit
B1: KÄRKILYÖNNIT RUNKOSARJASSA | V1: VUOSITTAISET SIJOITUKSET TOP - 30
G2: 0 > 1 | J2: 1 > 2 | M2: 2 > 3 | P2: 3 > k | S2: Yhteensä
B3: Vuosi | C3: Sija | D3: Seura | E3: OTT | F3: KL | G3: YHT | H3: % | I3: KL | J3: YHT | K3: % | L3: KL | M3: YHT | N3: % | O3: KL | P3: YHT | Q3: % | R3: KL | S3: YHT | T3: % | V3: Vuosi | W3: Sija | X3: Seura | Y3: 0 > 1 | Z3: 1 > 2 | AA3: 2 > 3 | AB3: 3 > k | AC3: KL
B4: 2016 | C4: 13. | D4: KeKi | E4: 28 | F4: 27 | G4: 56 | H4: 48.2 % | I4: 63 | J4: 107 | K4: 58.9 % | L4: 32 | M4: 40 | N4: 80.0 % | O4: 5 | P4: 5 | Q4: 100.0 % | R4: 127 | S4: 208 | T4: 61.1 % | V4: 2016 | W4: 13. | X4: KeKi | Z4: 15.
B5: 2017 | C5: 14. | D5: KeKi | E5: 30 | F5: 16 | G5: 29 | H5: 55.2 % | I5: 76 | J5: 117 | K5: 65.0 % | L5: 37 | M5: 58 | N5: 63.8 % | O5: 5 | P5: 7 | Q5: 71.4 % | R5: 134 | S5: 211 | T5: 63.5 % | V5: 2017 | W5: 14. | X5: KeKi | Z5: 12.
B6: 2018 | V6: 2018
B7: 2019 | C7: 12. | D7: KeKi | E7: 18 | F7: 37 | G7: 65 | H7: 56.9 % | I7: 4 | J7: 9 | K7: 44.4 % | L7: 5 | M7: 5 | N7: 100.0 % | O7: 4 | P7: 10 | Q7: 40.0 % | R7: 50 | S7: 89 | T7: 56.2 % | V7: 2019 | W7: 12. | X7: KeKi
B8: 2020 | C8: 10. | D8: KeKi | E8: 21 | F8: 56 | G8: 97 | H8: 57.7 % | I8: 15 | J8: 21 | K8: 71.4 % | L8: 2 | M8: 7 | N8: 28.6 % | O8: 2 | P8: 2 | Q8: 100.0 % | R8: 75 | S8: 127 | T8: 59.1 % | V8: 2020 | W8: 10. | X8: KeKi | Y8: 18.
B9: 2021 | C9: 6. | D9: KeKi | E9: 21 | F9: 25 | G9: 63 | H9: 39.7 % | I9: 8 | J9: 12 | K9: 66.7 % | L9: 3 | M9: 3 | N9: 100.0 % | O9: 2 | P9: 6 | Q9: 33.3 % | R9: 38 | S9: 84 | T9: 45.2 % | V9: 2021 | W9: 6. | X9: KeKi
B10: Yhteensä | E10: =SUM(E4:E9) -> 118 | F10: =SUM(F4:F9) -> 161 | G10: =SUM(G4:G9) -> 310 | H10: =PRODUCT(F10/G10) -> 51.9 % | I10: =SUM(I4:I9) -> 166 | J10: =SUM(J4:J9) -> 266 | K10: =PRODUCT(I10/J10) -> 62.4 % | L10: =SUM(L4:L9) -> 79 | M10: =SUM(M4:M9) -> 113 | N10: =PRODUCT(L10/M10) -> 69.9 % | O10: =SUM(O4:O9) -> 18 | P10: =SUM(P4:P9) -> 30 | Q10: =PRODUCT(O10/P10) -> 60.0 % | R10: =SUM(R4:R9) -> 424 | S10: =SUM(S4:S9) -> 719 | T10: =PRODUCT(R10/S10) -> 59.0 %
B12: KÄRKILYÖNNIT YLEMMISSÄ PUDOTUSPELEISSÄ | V12: VUOSITTAISET SIJOITUKSET TOP - 30
G13: 0 > 1 | J13: 1 > 2 | M13: 2 > 3 | P13: 3 > k | S13: Yhteensä
B14: Vuosi | C14: Sija | D14: Seura | E14: OTT | F14: KL | G14: YHT | H14: % | I14: KL | J14: YHT | K14: % | L14: KL | M14: YHT | N14: % | O14: KL | P14: YHT | Q14: % | R14: KL | S14: YHT | T14: % | V14: Vuosi | W14: Sija | X14: Seura | Y14: 0 > 1 | Z14: 1 > 2 | AA14: 2 > 3 | AB14: 3 > k | AC14: KL
B15: 2021 | C15: 6. | D15: KeKi | E15: 3 | F15: 1 | G15: 6 | H15: 16.7 % | I15: 0 | J15: 2 | K15: 0.0 % | L15: 0 | M15: 0 | N15: 0.0 % | O15: 2 | P15: 2 | Q15: 100.0 % | R15: 3 | S15: 10 | T15: 30.0 % | V15: 2021 | W15: 6. | X15: KeKi
B16: Yhteensä | E16: =SUM(E13:E15) -> 3 | F16: =SUM(F15:F15) -> 1 | G16: =SUM(G15:G15) -> 6 | H16: =PRODUCT(F16/G16) -> 16.7 % | I16: =SUM(I15:I15) -> 0 | J16: =SUM(J15:J15) -> 2 | K16: =PRODUCT(I16/J16) -> 0.0 % | L16: =SUM(L15:L15) -> 0 | M16: =SUM(M15:M15) -> 0 | N16: 0.0 % | O16: =SUM(O15:O15) -> 2 | P16: =SUM(P15:P15) -> 2 | Q16: =PRODUCT(O16/P16) -> 100.0 % | R16: =SUM(R15:R15) -> 3 | S16: =SUM(S15:S15) -> 10 | T16: =PRODUCT(R16/S16) -> 30.0 %
B18: KÄRKILYÖNNIT
G19: 0 > 1 | J19: 1 > 2 | M19: 2 > 3 | P19: 3 > k | S19: Yhteensä
E20: OTT | F20: KL | G20: YHT | H20: % | I20: KL | J20: YHT | K20: % | L20: KL | M20: YHT | N20: % | O20: KL | P20: YHT | Q20: % | R20: KL | S20: YHT | T20: %
B21: RUNKOSARJA | E21: =PRODUCT(E10) -> 118 | F21: =PRODUCT(F10) -> 161 | G21: =PRODUCT(G10) -> 310 | H21: =PRODUCT(H10) -> 51.9 % | I21: =PRODUCT(I10) -> 166 | J21: =PRODUCT(J10) -> 266 | K21: =PRODUCT(K10) -> 62.4 % | L21: =PRODUCT(L10) -> 79 | M21: =PRODUCT(M10) -> 113 | N21: =PRODUCT(N10) -> 69.9 % | O21: =PRODUCT(O10) -> 18 | P21: =PRODUCT(P10) -> 30 | Q21: =PRODUCT(Q10) -> 60.0 % | R21: =PRODUCT(R10) -> 424 | S21: =PRODUCT(S10) -> 719 | T21: =PRODUCT(T10) -> 59.0 %
B22: PLAY OFF | E22: =PRODUCT(E16) -> 3 | F22: =PRODUCT(F16) -> 1 | G22: 6 | H22: 16.7 % | I22: 0 | J22: 2 | K22: 0.0 % | L22: 0 | M22: 0 | N22: 0.0 % | O22: 2 | P22: 2 | Q22: 100.0 % | R22: 3 | S22: 10 | T22: 30.0 %
